Cogmind - Beta 11 @@@ ROGUE MODE // 2022.03.21 @ 20:07:06 Player: lumberblack Result: Destroyed by as-34951 with Assembled Heavy Rifle Performance ------------- Evolutions (0) 0 Regions Visited (2) 400 Robots Destroyed (19) 95 Value Destroyed (221) 221 Prototype IDs (6) 120 Alien Tech Used (0) 0 Bonus (0) 0 TOTAL SCORE: 836 Bonus ------- None Cogmind --------- Core Integrity 0/250 Matter 109/300 Energy 91/100 System Corruption 0% Temperature Cool (0) Movement Treading (240) Ox1 Location -10/Mines Parts ------- > --- POWER (1) -------- (None) > --- PROPULSION (2) --- Light Treads Armored Wheel > --- UTILITY (2) ------ Large Storage Unit > --- WEAPON (2) ------- Autogun Autogun > --- INVENTORY (15) --- Ion Engine Light Treads Light Treads Medium Storage Unit Large Storage Unit High-capacity Storage Unit Medium Battery (150) Large Matter Pod (150) Assault Rifle Mining Laser Peak State ------------ > --- POWER ------------ Ion Engine > --- PROPULSION ------- Light Treads Armored Wheel > --- UTILITY ---------- Improved Heat Sink Large Storage Unit > --- WEAPON ----------- Autogun Autogun > --- INVENTORY -------- Ion Engine Light Treads Light Treads Light Treads Light Treads Medium Storage Unit Large Storage Unit High-capacity Storage Unit Medium Battery Large Matter Pod Assault Rifle Autogun Autogun Rocket Launcher Mining Laser [Rating: 13] Favorites ----------- Power Ion Engine Engine Ion Engine Propulsion Light Treads Treads Light Treads Leg Aluminum Leg Wheel Wheel Utility Small Storage Unit Device High-powered Tractor Beam Storage Small Storage Unit Weapon Autogun Energy Gun Medium Laser Ballistic Gun Autogun Launcher Rocket Launcher Special Weapon Mining Laser Build | -11 -10 -10 ------- Run | Scr Mat Min Slots Evolved . | . . . Power . | . . . Propulsion . | . . . Utility . | . . . Weapon . | . . . Parts Attached 23 | 3 11 9 Power . | . . . Engine . | . . . Core . | . . . Reactor . | . . . Propulsion 5 | 2 1 2 Treads 3 | 1 . 2 Leg . | . . . Wheel 2 | 1 1 . Hover . | . . . Flight . | . . . Utility 8 | 1 6 1 Device 4 | 1 2 1 Storage 4 | . 4 . Processor . | . . . Hackware . | . . . Protection . | . . . Artifact . | . . . Weapon 10 | . 4 6 Energy Gun . | . . . Energy Cannon . | . . . Ballistic Gun 7 | . 3 4 Ballistic Cannon . | . . . Launcher 2 | . . 2 Special Weapon 1 | . 1 . Impact Weapon . | . . . Slashing Weapon . | . . . Piercing Weapon . | . . . Special Melee Weapon . | . . . Unidentified Prototypes . | . . . Parts Lost 8 | . . 8 Power 1 | . . 1 Propulsion 2 | . . 2 Utility 2 | . . 2 Weapon 3 | . . 3 Highest Loss Streak 7 | . . 7 To Critical Strikes . | . . . Average Slot Usage (%) 98 | . 99 95 Engine 13 | . 14 12 Treads 14 | . 14 14 Wheel 14 | . 14 14 Device 13 | . 13 10 Storage 14 | . 14 14 Ballistic Gun 26 | . 27 21 Launcher 1 | . . 6 Naked Turns . | . . . Heaviest Build 52 | 15 52 33 Greatest Support 20 | 20 20 12 Greatest Overweight (x) 5 | . 5 2 Average Overweight (x) 2 | . 2 2 Largest Inventory Capacity 20 | 8 20 15 Average Capacity 11 | 8 10 15 Most Carried 15 | 7 15 15 Average Carried 10 | 4 10 14 Final Capacity 15 | 8 15 15 Final Carried 15 | 5 15 10 Class Distribution -------------------- 100% | Mutant Dominant Class ---------------- Mutant | -10/Materials Mutant | -10/Mines Resources | -11 -10 -10 ----------- Run | Scr Mat Min Matter Collected 667 | 248 328 91 Remotely 98 | . 98 . Salvage Created 627 | 171 294 162 Parts 29 | 6 13 10 Haulers Intercepted 2 | . 2 . Recyclers Shooed . | . . . Parts Field Recycled . | . . . Retrieved Matter . | . . . Parts Self-Destructed . | . . . Prevented . | . . . Kills | -11 -10 -10 ------- Run | Scr Mat Min Combat Hostiles Destroyed 27 | . 3 24 Guns 11 | . 3 8 AOE 16 | . . 16 Classes Destroyed 7 | 2 3 2 Worker 1 | . 1 . Tunneler 3 | 3 . . Hauler 2 | . 2 . Recycler 3 | 1 2 . Swarmer 9 | . 3 6 Grunt 1 | . . 1 Assembled 17 | . . 17 Best Kill Streak 17 | 2 3 17 Combat Bots Only 17 | . 3 17 Max Kills in Single Turn 4 | 1 1 4 Gunslinging . | . . . Exploded 4 | . . 4 Melee . | . . . Uniques/NPCs Destroyed . | . . . Combat | -11 -10 -10 -------- Run | Scr Mat Min Damage Taken 1210 | . 60 1150 Core 260 | . 6 254 Absorbed by Shields . | . . . Core Remaining (%) 100 | 100 . . Volleys Fired 51 | 6 19 26 Largest 2 | 2 2 2 Hottest 100 | 70 100 46 Shots Fired 92 | 12 36 44 Gun 82 | 12 34 36 Cannon . | . . . Launcher 8 | . . 8 Special 2 | . 2 . Kinetic 76 | 6 34 36 Thermal 8 | 6 2 . Explosive 8 | . . 8 Electromagnetic . | . . . Robot Hit Streak 8 | 8 6 8 Robot Miss Streak 3 | 1 3 2 Penetration Max . | . . . Secondary Targets 3 | . 1 2 Max Gunslinging Chain 1 | . 1 1 Shots Hit Robots 53 | 9 20 24 Core Hits 60 | 5 9 46 Critical Kills . | . . . Critical Parts Destroyed . | . . . Critical Strikes . | . . . Melee Attacks . | . . . Impact . | . . . Slashing . | . . . Piercing . | . . . Sneak Attacks . | . . . Combat Hostiles . | . . . Follow-up Attacks . | . . . Damage Inflicted 2032 | 116 288 1628 Guns 780 | 116 288 376 Cannons . | . . . Explosions 1252 | . . 1252 Melee . | . . . Ramming . | . . . Kinetic 744 | 80 288 376 Thermal 36 | 36 . . Explosive 1252 | . . 1252 Electromagnetic . | . . . Impact . | . . . Slashing . | . . . Piercing . | . . . Highest Corruption . | . . . Average Corruption . | . . . Corruption Purged . | . . . Corruption Blocked . | . . . Overload Shots . | . . . Overflow Damage 15 | . . 15 Projectiles . | . . . Explosions 15 | . . 15 Melee . | . . . Knockbacks . | . . . Impact . | . . . Kinetic . | . . . Secondary . | . . . Self-Inflicted Damage 54 | . . 54 Shots 2 | . . 2 Rammed . | . . . Targets Rammed . | . . . Kicked . | . . . Crushed . | . . . Highest Temperature 47 | 47 20 31 Average Temperature 11 | 15 7 18 Received Heat Transfer 54 | . . 54 Siege Activations . | . . . Robots Corrupted . | . . . Combat Hostiles . | . . . Parts Fried . | . . . Impact Corruptions . | . . . Robots Melted . | . . . Combat Hostiles . | . . . Parts Melted . | . . . Heat Transferred 111 | 111 . . Parts Sabotaged . | . . . Parts Stolen . | . . . Parts Stripped . | . . . Power Chain Reactions . | . . . Missiles Intercepted . | . . . Alert | -11 -10 -10 ------- Run | Scr Mat Min Peak Influence 425 | 20 196 425 Initial 46 | . 13 46 Average 69 | 11 47 181 Maximum Alert Level 2 | . . 2 Low Security (%) 93 | 100 100 62 Level 1 5 | . . 34 Level 2 . | . . 3 Level 3 . | . . . Level 4 . | . . . Level 5 . | . . . High Security . | . . . Max Security . | . . . Squads Dispatched 2 | . 2 . Investigation 1 | . 1 . Extermination . | . . . Reinforcement 1 | . 1 . Assault . | . . . Garrison . | . . . Intercept . | . . . Searches Triggered . | . . . Construction Impeded . | . . . Haulers Reinforced . | . . . Active Scanning Responses . | . . . Cargo Convoy Interrupts . | . . . Stealth | -11 -10 -10 --------- Run | Scr Mat Min Distress Signals 1 | . 1 . Communications Jammed . | . . . Distress Signals . | . . . Times Spotted 37 | . 10 27 Peak Tracking Total 19 | . 4 19 Tactical Retreats 2 | . 1 1 Traps | -11 -10 -10 ------- Run | Scr Mat Min Traps Triggered . | . . . Indirectly . | . . . Trap Hack Attempts . | . . . Triggered . | . . . Disarmed . | . . . Reprogrammed 6 | . 6 . Reused . | . . . Traps Extracted . | . . . Installed . | . . . Triggered . | . . . Machines | -11 -10 -10 ---------- Run | Scr Mat Min Machines Disabled 4 | . 2 2 Max in Single Turn 1 | . 1 1 Machines Sabotaged . | . . . Garrisons Compromised . | . . . Overloaded Fab Kills . | . . . Hacking | -11 -10 -10 --------- Run | Scr Mat Min Machines Accessed 9 | . 9 . Terminals 8 | . 8 . Fabricators . | . . . Repair Stations . | . . . Recycling Units 1 | . 1 . Scanalyzers . | . . . Garrison Access . | . . . Total Hacks 42 | . 42 . Successful 25 | . 25 . Failed 16 | . 16 . Catastrophic 1 | . 1 . Database Lockouts 1 | . 1 . Manual 29 | . 29 . Terminals 39 | . 39 . Fabricators . | . . . Repair Stations . | . . . Recycling Units 3 | . 3 . Scanalyzers . | . . . Garrison Access . | . . . Terminal Hacks 16 | . 16 . Robot Analysis 2 | . 2 . Prototype ID Bank 5 | . 5 . Branch Access Points 1 | . 1 . Terminal Index 1 | . 1 . Locate Traps 3 | . 3 . Reprogram Traps 1 | . 1 . Zone Layout 3 | . 3 . Fabricator Hacks . | . . . Repair Station Hacks . | . . . Recycling Unit Hacks 1 | . 1 . Retrieve Matter 1 | . 1 . Scanalyzer . | . . . Garrison Access Hacks . | . . . Unauthorized Hacks 8 | . 8 . Terminals 7 | . 7 . Track 4 | . 4 . Assimilate 1 | . 1 . Disrupt 2 | . 2 . Fabricators . | . . . Repair Stations . | . . . Recycling Units 1 | . 1 . Tunnel 1 | . 1 . Scanalyzers . | . . . Garrison Access . | . . . Data Cores Recovered . | . . . Used . | . . . Hacking Detections 9 | . 9 . Full Trace Events . | . . . Feedback Events . | . . . Feedback Blocked . | . . . Robot Schematics Acquired . | . . . Robots Built . | . . . Authchips . | . . . Time . | . . . Total Robot Build Rating . | . . . Part Schematics Acquired . | . . . Parts Built . | . . . Authchips . | . . . Time . | . . . Total Part Build Rating . | . . . Parts Repaired . | . . . Time . | . . . Parts Recycled . | . . . Recycled Matter . | . . . Retrieved Matter 85 | . 85 . Retrieved Components . | . . . Parts Scanalyzed . | . . . Part Schematics Acquired . | . . . Parts Damaged . | . . . Bothacking | -11 -10 -10 ------------ Run | Scr Mat Min Used RIF Installer . | . . . Robots Hacked . | . . . Non-combat . | . . . Combat . | . . . Robot Hacks Applied . | . . . Relay Couplers Released . | . . . Fabnet Peak Effective % . | . . . Robots Rewired . | . . . Allies Hacked . | . . . Hacks Repelled . | . . . Allies | -11 -10 -10 -------- Run | Scr Mat Min Total Allies 1 | . 1 . Largest Group 1 | . 1 . Highest-Rated Group 10 | . 10 . Highest-Rated Ally 10 | . 10 . Total Orders . | . . . Ally Attacks . | . . . Total Damage . | . . . Kills . | . . . Allies Corrupted . | . . . Allies Melted . | . . . Intel | -11 -10 -10 ------- Run | Scr Mat Min Robot Analysis Total 2 | . 2 . Derelict Logs Recovered 1 | . . 1 Drone Launches . | . . . Drone Recoveries . | . . . Exploration | -11 -10 -10 ------------- Run | Scr Mat Min Turns Passed 2071 | 77 1633 361 Spaces Moved 813 | 24 549 240 Core . | . . . Treads 30 | 18 12 . Legs 6 | 6 . . Wheels 777 | . 537 240 Hover . | . . . Flight . | . . . Fastest Speed 95 | 120 95 120 Average Speed 120 | 150 119 120 Slowest Speed 160 | 160 160 120 Overloaded Moves . | . . . Propulsion Burnouts . | . . . Robots Hopped . | . . . Cave-ins Triggered . | . . . Exploration Rate (%) 47 | 3 85 54 Regions Visited 2 Branch Regions 1 Pre-discovered Areas 1 | . 1 . Known Exits Taken 1 | . 1 . Unknown Exits Taken 1 | 1 . . Scrap Searched 1 | . . 1 Spaces Dug 9 | . 2 7 Terrain Destroyed 59 | . 2 57 Melee . | . . . Projectile 2 | . 2 . AOE 57 | . . 57 Terrain Rammed . | . . . Walls Destroyed . | . . . Machines Disabled . | . . . Actions | -11 -10 -10 --------- Run | Scr Mat Min Total 1826 | 54 1495 277 Wait 909 | 17 892 . Move 811 | 23 548 240 Hop . | . . . Pick Up 16 | 2 13 1 Fast Attach 5 | 1 3 1 Attach 6 | 1 . 5 Detach 2 | . 2 . Swap 12 | 1 8 3 Drop 14 | 3 10 1 Fire 51 | 6 19 26 Melee . | . . . Ram . | . . . Kick . | . . . Crush . | . . . Escape Stasis . | . . . Rewire . | . . . Trap . | . . . Miscellaneous . | . . . Route ------- -11/Scrapyard -10/Materials (discovered 5 exits: [*Mat x3] / *Min x2) -10/Mines History --------- Turn | Location | Event 14 | -11/Scrapyard | Discovered new exit (range 3) 78 | -11/Scrapyard | Entered Materials 316 | -10/Materials | Build established: Mutant 1138 | -10/Materials | Discovered new exit (range 16) 1215 | -10/Materials | Discovered new exit (range 9) 1227 | -10/Materials | Identified exit to Mines 1227 | -10/Materials | Central database locked down 1331 | -10/Materials | Discovered new exit (range 11) 1474 | -10/Materials | Discovered new exit (range 10) 1711 | -10/Materials | Entered Mines 1720 | -10/Mines | Received a Rocket Launcher from a helpful Derelict 2027 | -10/Mines | Assembled infested the area 2047 | -10/Mines | Core integrity fell below 50% 2066 | -10/Mines | Core integrity fell below 20% 2072 | -10/Mines | Destroyed by as-34951 with Assembled Heavy Rifle Last Messages --------------- 02039_ as-76634 destroyed. 02039_ as-90134 destroyed. 02041_ Rocket Launcher destroyed. 02041_ Lgt. Treads destroyed. 02043_ as-02988 destroyed. 02045_ Autogun destroyed. 02047_ Ion Engine destroyed. 02047_ as-76918 destroyed. 02047_ Switching to secondary target: as-57015. 02049_ as-57015 destroyed. 02050_ Autogun destroyed. 02052_ The unstable cave ceiling collapses. 02052_ Imp. Heat Sink destroyed. 02053_ as-61166 destroyed. 02056_ as-71243 destroyed. 02058_ as-69971 destroyed. 02058_ Switching to secondary target: as-94565. 02066_ Lgt. Treads destroyed. 02070_ Destroyed Asb. Hover Unit. 02070_ as-94565 destroyed. Map ----- +----------------------------------------------------+ | | | | | | | | | | | | | | | | | | | | | | | | | | | | | | | | | | | | | | | | | ????????????????????????????????????????????? | | ????????????????????????????????????????????? | | ??????????????????????????######????????????? | | ?????????????????###????## ##???????????? | | ????????????????## ###### #???????????? | | ????????????##### @ #???????????? | | ????????????# % #??????????? | | ????????????# #### %% #??????????? | | ????######### #??## % a #??????????? | | *#???# %a #??????????? | | ????######### #??# % #?????????? | | ????????????#=#?# ????????? | | ????????????# #?# % ??????? | | ????????????# #?# % # ??????? | | ????????????# #?# ###? ??????? | | ??????####### #?# #### ### ##??????????? | | ??????# [=#?## ##???# ?? #???????????? | | ??????# ##### #??###?????? ###??#???????????? | | ??????# #???# #???????????##????????????????? | | ??????# #???# #?????????????????????????????? | | ??????# #???# #?????????????????????????????? | | ??????# #???# #?????????????????????????????? | | ??????# #???# #?????????????????????????????? | | ??????# #???# #?????????????????????????????? | | ??????# #???# #?????????????????????????????? | | ??????# #???# #?????????????????????????????? | | ??????# #???# #?????????????????????????????? | | ??##### #???? ??????????????????????????????? | | ??##### #???? ??????????????????????????????? | | ??# #???? ??????????????????????????????? | +----------------------------------------------------+ Best States ------------- Heat Dissipation 39 Energy Generation 10 Energy Capacity 250 Matter Stores 300 Matter Capacity 300 Sight Range 16 Terrain Scan Range 16 Terrain Scan Density 10 Evasion (%) 50 Recoil Reduction 1 Item Schematics ----------------- None Robot Schematics ------------------ None Fabricated ------------ Nothing Alien Tech Used ----------------- None Achievements -------------- None Challenges ------------ None Game ------ Seed MolecularLatentCutter Manual? 0 Play Time 00:15:19 Cumulative 358.5 hours Start 2022.03.21 @ 19:54:39 End 2022.03.21 @ 20:07:06 Sessions 1 Manual Loads 0 Difficulty Rogue Special Mode None Game No. 314 Rogue 314 Adventurer 0 Explorer 0 Win Type - Total 6 Types 5/0/1/0/0/0/0/0/0 Lore% 53 Gallery% 73 Achievement% 64 Wizard Run 0 Options --------- ASCII 0 Keyboard 0 Movement Numpad Keybinds 0 Fullscreen 2 Font 18/TerminusBold Map View 76x50 Tactical HUD 1 Map Filters NONE Filters NONE Steam 1 RUN: 8ac8cac7-a235-4db8-9a96-d4036448925b